fUSD/lending_fUSD_20250205
["ID","MTS","AMOUNT","RATE_DAILY","PERIOD"]
[351682906,1738719040838,-500.0,0.00011172,2]
[351682907,1738719040848,-500.0,0.00011172,2]
[351682908,1738719040858,-410.08,0.00011172,2]
[351682909,1738719040867,-500.0,0.00011172,2]
[351682910,1738719040876,-159.52,0.00011173,2]
[351682911,1738719040886,-429.06,0.00011173,2]
[351682912,1738719040895,-500.0,0.00011173,2]
[351682913,1738719040904,-500.0,0.00011173,2]
[351682914,1738719040914,-650.22,0.00011173,2]
[351682915,1738719040923,-288.41180225,0.00011173,2]
[351682916,1738719040932,-500.0,0.00011173,2]
[351682917,1738719040942,-182.21367505,0.00011173,2]
[351682918,1738719040951,-500.0,0.00011173,2]
[351682919,1738719040961,-500.0,0.00011173,2]
[351682920,1738719040971,-500.0,0.00011173,2]
[351682921,1738719040981,-500.0,0.00011173,2]
[351682922,1738719040990,-500.0,0.00011173,2]
[351682923,1738719041000,-523.65,0.00011173,2]
[351682924,1738719041009,-500.0,0.00011173,2]
[351682925,1738719041019,-500.0,0.00011173,2]
[351682926,1738719041029,-531.01,0.00011173,2]
[351682927,1738719041038,-600.00920773,0.00011173,2]
[351682928,1738719041048,-532.7442602,0.00011173,2]
[351682929,1738719041058,-500.0,0.00011173,2]
[351682930,1738719041068,-829.97,0.00011173,2]
[351682931,1738719041078,-150.0,0.00011178,2]
[351682932,1738719041087,-150.0,0.00011178,2]
[351682933,1738719041097,-150.0,0.00011178,2]
[351682934,1738719041106,-150.0,0.00011178,2]
[351682935,1738719041116,-150.0,0.00011178,2]
[351682936,1738719041126,-1086.462,0.00011184,2]
[351682937,1738719041138,-640.578,0.00011184,2]
[351682938,1738719041147,-674.73266379,0.000112,2]
[351682939,1738719041157,-239.4907065,0.000112,2]
[351682940,1738719041165,-150.0,0.00011229,2]
[351682941,1738719041174,-150.0,0.00011237,2]
[351682942,1738719041183,-150.0,0.00011237,2]
[351682943,1738719041191,-150.0,0.00011237,2]
[351682944,1738719041200,-150.0,0.00011248,2]
[351682945,1738719041210,-150.0,0.00011268,2]
[351682946,1738719041219,-150.0,0.00011285,2]
[351682947,1738719041228,-150.0,0.00011289,2]
[351682948,1738719041237,-4000.0,0.0001129,2]
[351682949,1738719041247,-1739.0,0.000113,2]
[351682950,1738719041257,-150.0,0.00011308,2]
[351682951,1738719041267,-500.0,0.00011308,2]
[351682952,1738719041277,-500.0,0.00011308,2]
[351682953,1738719041287,-500.0,0.00011308,2]
[351682954,1738719041297,-500.0,0.00011308,2]
[351682955,1738719041306,-500.0,0.00011308,2]
[351682956,1738719041315,-500.0,0.00011308,2]
[351682957,1738719041325,-500.0,0.00011308,2]
[351682958,1738719041335,-2000.0,0.00011309,2]
[351682959,1738719041344,-500.0,0.00011309,2]
[351682960,1738719041353,-500.0,0.00011309,2]
[351682961,1738719041363,-500.0,0.00011309,2]
[351682962,1738719041373,-500.0,0.00011309,2]
[351682963,1738719041382,-500.0,0.00011309,2]
[351682964,1738719041392,-255.84,0.00011309,2]
[351682965,1738719041402,-500.0,0.0001131,2]
[351682966,1738719041411,-650.22,0.0001131,2]
[351682967,1738719041421,-500.0,0.0001131,2]
[351682968,1738719041431,-500.0,0.0001131,2]
[351682969,1738719041441,-500.0,0.0001131,2]
[351682970,1738719041450,-500.0,0.0001131,2]
[351682971,1738719041460,-500.0,0.0001131,2]
[351682972,1738719041469,-500.0,0.0001131,2]
[351682973,1738719041483,-523.65,0.0001131,2]
[351682974,1738719041493,-500.0,0.0001131,2]
[351682975,1738719041503,-500.0,0.0001131,2]
[351682976,1738719041512,-531.01,0.0001131,2]
[351682977,1738719041523,-500.0,0.0001131,2]
[351682978,1738719041532,-829.97,0.0001131,2]
[351682979,1738719041542,-150.0,0.0001134,2]
[351682980,1738719041551,-150.0,0.00011358,2]
[351682981,1738719041561,-151.3,0.0001137,2]
[351682982,1738719041571,-150.38,0.0001137,2]
[351682983,1738719041581,-640.61,0.0001137,2]
[351682984,1738719041590,-1000.0,0.00011371,2]
[351682985,1738719041599,-151.622,0.0001138,2]
[351682986,1738719041608,-2860.124,0.0001138,2]
[351682987,1738719041618,-1000.0,0.00011384,2]
[351682988,1738719041627,-251.28,0.00011384,2]
[351682989,1738719041636,-5574.6013925,0.00011391,2]
[351682990,1738719041646,-2501.4466243,0.00011391,2]
[351682991,1738719041656,-184.29652134,0.00011392,2]
[351682992,1738719041665,-152.1,0.00011399,2]
[351682993,1738719041675,-500.0,0.00011399,2]
[351682994,1738719041684,-500.0,0.00011399,2]
[351682995,1738719041693,-550.74,0.00011399,2]
[351682996,1738719041703,-500.0,0.00011399,2]
[351682997,1738719041712,-500.0,0.00011399,2]
[351682998,1738719041722,-500.0,0.00011399,2]
[351682999,1738719041732,-500.0,0.00011399,2]
[351683000,1738719041742,-500.0,0.00011399,2]
[351683001,1738719041757,-385.14,0.00011399,2]
[351683002,1738719041767,-500.0,0.00011399,2]
[351683003,1738719041777,-500.0,0.00011399,2]
[351683004,1738719041786,-360.8,0.00011399,2]
[351683005,1738719041796,-171.63052124,0.00011399,2]
[351683006,1738719041805,-611.78,0.00011399,2]
[351683007,1738719041814,-500.0,0.00011399,2]
[351683008,1738719041824,-339.4,0.00011399,2]
[351683009,1738719041835,-167.33,0.00011399,2]
[351683010,1738719041844,-622.06,0.00011399,2]
[351683011,1738719041854,-500.0,0.00011399,2]
[351683012,1738719041863,-500.0,0.00011399,2]
[351683013,1738719041873,-500.0,0.00011399,2]
[351683014,1738719041883,-500.0,0.00011399,2]
[351683015,1738719041894,-604.48,0.00011399,2]
[351683016,1738719041905,-390.4,0.00011399,2]
[351683017,1738719041915,-500.0,0.00011399,2]
[351683018,1738719041924,-500.0,0.00011399,2]
[351683019,1738719041934,-515.05,0.00011399,2]
[351683020,1738719041943,-332.07945401,0.00011399,2]
[351683021,1738719041953,-500.0,0.00011399,2]
[351683022,1738719041963,-500.0,0.00011399,2]
[351683023,1738719041973,-500.0,0.00011399,2]
[351683024,1738719041982,-401.97276386,0.00011399,2]
[351683025,1738719041992,-500.0,0.00011399,2]
[351683026,1738719042001,-500.0,0.00011399,2]
[351683027,1738719042010,-500.0,0.00011399,2]
[351683028,1738719042019,-511.69,0.00011399,2]
[351683029,1738719042028,-500.0,0.00011399,2]
[351683030,1738719042038,-500.0,0.00011399,2]
[351683031,1738719042047,-500.0,0.00011399,2]
[351683032,1738719042056,-500.0,0.00011399,2]
[351683033,1738719042066,-500.0,0.00011399,2]
[351683034,1738719042075,-500.0,0.00011399,2]
[351683035,1738719042084,-500.0,0.00011399,2]
[351683036,1738719042094,-500.0,0.00011399,2]
[351683037,1738719042103,-500.0,0.00011399,2]
[351683038,1738719042113,-500.0,0.00011399,2]
[351683039,1738719042123,-500.0,0.00011399,2]
[351683040,1738719042134,-500.0,0.00011399,2]
[351683041,1738719042150,-500.0,0.00011399,2]
[351683042,1738719042159,-500.0,0.00011399,2]
[351683043,1738719042169,-500.0,0.00011399,2]
[351683044,1738719042179,-500.0,0.00011399,2]
[351683045,1738719042188,-500.0,0.00011399,2]
[351683046,1738719042198,-500.0,0.00011399,2]
[351683047,1738719042207,-500.0,0.00011399,2]
[351683048,1738719042217,-500.0,0.00011399,2]
[351683049,1738719042227,-628.05,0.00011399,2]
[351683050,1738719042237,-500.0,0.00011399,2]
[351683051,1738719042247,-500.0,0.00011399,2]
[351683052,1738719042256,-500.0,0.00011399,2]
[351683053,1738719042266,-534.59,0.00011399,2]
[351683054,1738719042275,-500.0,0.00011399,2]
[351683055,1738719042285,-500.0,0.00011399,2]
[351683056,1738719042295,-500.0,0.00011399,2]
[351683057,1738719042304,-500.0,0.00011399,2]
[351683058,1738719042314,-333.377761,0.00011399,2]
[351683059,1738719042324,-500.0,0.00011399,2]
[351683060,1738719042333,-500.0,0.00011399,2]
[351683061,1738719042343,-500.0,0.00011399,2]
[351683062,1738719042353,-500.0,0.00011399,2]
[351683063,1738719042362,-500.0,0.00011399,2]
[351683064,1738719042372,-500.0,0.00011399,2]
[351683065,1738719042382,-370.74,0.00011399,2]
[351683066,1738719042390,-423.6869066,0.00011399,2]
[351683067,1738719042400,-500.0,0.00011399,2]
[351683068,1738719042409,-500.0,0.00011399,2]
[351683069,1738719042419,-500.0,0.00011399,2]
[351683070,1738719042428,-500.0,0.00011399,2]
[351683071,1738719042438,-500.0,0.00011399,2]
[351683072,1738719042447,-500.0,0.00011399,2]
[351683073,1738719042456,-500.0,0.00011399,2]
[351683074,1738719042466,-500.0,0.00011399,2]
[351683075,1738719042476,-500.0,0.00011399,2]
[351683076,1738719042490,-500.0,0.00011399,2]
[351683077,1738719042499,-500.0,0.00011399,2]
[351683078,1738719042509,-500.0,0.00011399,2]
[351683079,1738719042519,-500.0,0.00011399,2]
[351683080,1738719042529,-500.0,0.00011399,2]
[351683081,1738719042538,-500.0,0.00011399,2]
[351683082,1738719042548,-500.0,0.00011399,2]
[351683083,1738719042558,-500.0,0.00011399,2]
[351683084,1738719042568,-500.0,0.00011399,2]
[351683085,1738719042577,-500.0,0.00011399,2]
[351683086,1738719042587,-400.28,0.00011399,2]
[351683087,1738719042597,-500.0,0.00011399,2]
[351683088,1738719042607,-500.0,0.00011399,2]
[351683089,1738719042616,-500.0,0.00011399,2]
[351683090,1738719042625,-526.99,0.00011399,2]
[351683091,1738719042635,-500.0,0.00011399,2]
[351683092,1738719042646,-500.0,0.00011399,2]
[351683093,1738719042658,-546.75,0.00011399,2]
[351683094,1738719042668,-394.4,0.00011399,2]
[351683095,1738719042677,-500.0,0.00011399,2]
[351683096,1738719042688,-500.0,0.00011399,2]
[351683097,1738719042698,-435.18,0.00011399,2]
[351683098,1738719042714,-500.0,0.00011399,2]
[351683099,1738719042728,-420.03128337,0.00011399,2]
[351683100,1738719042741,-500.0,0.00011399,2]
[351683101,1738719042752,-500.0,0.00011399,2]
[351683102,1738719042763,-500.0,0.00011399,2]
[351683103,1738719042775,-176.91,0.00011399,2]
[351683104,1738719042786,-286.58,0.00011399,2]
[351683105,1738719042797,-500.0,0.00011399,2]
[351683106,1738719042811,-500.0,0.00011399,2]
[351683107,1738719042820,-500.0,0.00011399,2]
[351683108,1738719042829,-500.0,0.00011399,2]
[351683109,1738719042839,-500.0,0.00011399,2]
[351683110,1738719042848,-500.0,0.00011399,2]
[351683111,1738719042858,-500.0,0.00011399,2]
[351683112,1738719042867,-500.0,0.00011399,2]
[351683113,1738719042877,-500.0,0.00011399,2]
[351683114,1738719042886,-219.50786235,0.00011399,2]
[351683115,1738719042896,-500.0,0.00011399,2]
[351683116,1738719042905,-500.0,0.00011399,2]
[351683117,1738719042914,-500.0,0.00011399,2]
[351683118,1738719042923,-500.0,0.00011399,2]
[351683119,1738719042933,-500.0,0.00011399,2]
[351683120,1738719042942,-500.0,0.00011399,2]
[351683121,1738719042952,-500.0,0.00011399,2]
[351683123,1738719042962,-621.78,0.00011399,2]
[351683124,1738719042972,-500.0,0.00011399,2]
[351683125,1738719042982,-500.0,0.00011399,2]
[351683126,1738719042992,-560.09,0.00011399,2]
[351683127,1738719043004,-500.0,0.00011399,2]
[351683128,1738719043014,-500.0,0.00011399,2]
[351683129,1738719043024,-500.0,0.00011399,2]
[351683131,1738719043034,-500.0,0.00011399,2]
[351683132,1738719043044,-500.0,0.00011399,2]
[351683133,1738719043054,-500.0,0.00011399,2]
[351683134,1738719043246,-500.0,0.00011399,2]
[351683135,1738719043257,-500.0,0.00011399,2]
[351683136,1738719043268,-361.65645044,0.00011399,2]
[351683137,1738719043279,-500.0,0.00011399,2]
[351683138,1738719043289,-500.0,0.00011399,2]
[351683139,1738719043299,-500.0,0.00011399,2]
[351683140,1738719043309,-500.0,0.00011399,2]
[351683141,1738719043319,-500.0,0.00011399,2]
[351683142,1738719043329,-500.0,0.00011399,2]
[351683143,1738719043339,-500.0,0.00011399,2]
[351683144,1738719043348,-500.0,0.00011399,2]
[351683145,1738719043358,-500.0,0.00011399,2]
[351683146,1738719043367,-500.0,0.00011399,2]
[351683147,1738719043376,-500.0,0.00011399,2]
[351683148,1738719043386,-500.0,0.00011399,2]
[351683150,1738719043395,-500.0,0.00011399,2]
[351683152,1738719043405,-165.82606738,0.00011399,2]
[351683154,1738719043414,-500.0,0.00011399,2]
[351683155,1738719043423,-607.87,0.00011399,2]
[351683156,1738719043433,-500.0,0.00011399,2]
[351683157,1738719043442,-518.75309,0.00011399,2]
[351683158,1738719043452,-500.0,0.00011399,2]
[351683159,1738719043462,-500.0,0.00011399,2]
[351683160,1738719043471,-500.0,0.00011399,2]
[351683161,1738719043483,-500.0,0.00011399,2]
[351683162,1738719043493,-500.0,0.00011399,2]
[351683163,1738719043503,-500.0,0.00011399,2]
[351683164,1738719043512,-500.0,0.00011399,2]
[351683165,1738719043527,-500.0,0.00011399,2]
[351683166,1738719043537,-500.0,0.00011399,2]
[351683167,1738719043547,-500.0,0.00011399,2]
[351683168,1738719043558,-500.0,0.00011399,2]
[351683169,1738719043568,-500.0,0.00011399,2]
[351683170,1738719043587,-500.0,0.00011399,2]
[351683171,1738719043598,-500.0,0.00011399,2]
[351683172,1738719043608,-500.0,0.00011399,2]
[351683173,1738719043618,-500.0,0.00011399,2]
[351683174,1738719043627,-500.0,0.00011399,2]
[351683175,1738719043638,-500.0,0.00011399,2]
[351683176,1738719043651,-286.52574514,0.00011399,2]
[351683177,1738719043673,-500.0,0.00011399,2]
[351683178,1738719043698,-500.0,0.00011399,2]
[351683179,1738719043711,-500.0,0.00011399,2]
[351683180,1738719043721,-500.0,0.00011399,2]
[351683181,1738719043734,-500.0,0.00011399,2]
[351683182,1738719043745,-500.0,0.00011399,2]
[351683183,1738719043756,-500.0,0.00011399,2]
[351683184,1738719043768,-500.0,0.00011399,2]
[351683185,1738719043778,-500.0,0.00011399,2]
[351683187,1738719043790,-500.0,0.00011399,2]
[351683189,1738719043800,-615.32405456,0.00011399,2]
[351683190,1738719043811,-500.0,0.00011399,2]
[351683191,1738719043821,-500.0,0.00011399,2]
[351683192,1738719043831,-500.0,0.00011399,2]
[351683193,1738719043841,-500.0,0.00011399,2]
[351683194,1738719043851,-500.0,0.00011399,2]
[351683195,1738719043859,-500.0,0.00011399,2]
[351683197,1738719043869,-500.0,0.00011399,2]
[351683198,1738719043879,-555.4,0.00011399,2]
[351683199,1738719043889,-500.0,0.00011399,2]
[351683200,1738719043899,-610.3,0.00011399,2]
[351683201,1738719043908,-500.0,0.00011399,2]
[351683202,1738719043918,-500.0,0.00011399,2]
[351683203,1738719043927,-500.0,0.00011399,2]
[351683204,1738719043936,-500.0,0.00011399,2]
[351683205,1738719043946,-500.0,0.00011399,2]
[351683206,1738719043955,-500.0,0.00011399,2]
[351683207,1738719043965,-500.0,0.00011399,2]
[351683208,1738719043974,-562.93,0.00011399,2]
[351683209,1738719043986,-500.0,0.00011399,2]
[351683210,1738719043995,-500.0,0.00011399,2]
[351683211,1738719044005,-500.0,0.00011399,2]
[351683212,1738719044014,-500.0,0.00011399,2]
[351683213,1738719044024,-500.0,0.00011399,2]
[351683214,1738719044033,-500.0,0.00011399,2]
[351683215,1738719044043,-280.83805909,0.00011399,2]
[351683216,1738719044052,-500.0,0.00011399,2]
[351683217,1738719044062,-525.14605375,0.00011399,2]
[351683218,1738719044071,-480.53453704,0.00011399,2]
[351683219,1738719044081,-500.0,0.00011399,2]
[351683220,1738719044090,-500.0,0.00011399,2]
[351683221,1738719044099,-500.0,0.00011399,2]
[351683222,1738719044109,-500.0,0.00011399,2]
[351683223,1738719044119,-559.46076216,0.00011399,2]
[351683225,1738719044129,-500.0,0.00011399,2]
[351683227,1738719044138,-616.78341066,0.00011399,2]
[351683229,1738719044148,-500.0,0.00011399,2]
[351683231,1738719044158,-233.08676241,0.00011399,2]
[351683232,1738719044167,-2550258.96311481,0.00011399,2]
[351683234,1738719044211,-434.49205448,0.00011173,2]
[351683235,1738719044223,-65.50794552,0.00011173,2]
[351683236,1738719044234,-346.21378634,0.00011399,2]
[351683237,1738719044245,-17815.0,0.00011399,2]
[351683238,1738719044257,-1030.0,0.00011399,2]
[351683239,1738719044428,-464.30993299,0.00010897,2]
[351683240,1738719044439,-516.47406701,0.00011158,2]
[351683241,1738719044451,-1181.86416873,0.00011158,2]
[351683242,1738719044461,-150.202,0.00011184,2]
[351683243,1738719044470,-500.0,0.0001131,2]
[351683244,1738719044485,-512.43589846,0.00011399,2]
[351683245,1738719044495,-175.96457861,0.00011399,2]
[351683246,1738719044504,-3125.13335415,0.00011399,2]
[351683247,1738719044749,-1042.22959074,0.00011399,2]
[351683248,1738719044765,-985.5128919,0.00011399,2]
[351683249,1738719044777,-7023.08039482,0.00011399,2]
[351683250,1738719044789,-4702.1225,0.00011399,2]
[351683251,1738719045005,-228.96610179,9.999e-05,2]
[351683252,1738719045015,-151.6,0.000105,2]
[351683253,1738719045024,-506.30061591,0.00010897,2]
[351683254,1738719045034,-581.92946133,0.00010897,2]
[351683255,1738719045044,-517.95502772,0.00010897,2]
[351683256,1738719045054,-210.58879146,0.00010899,2]
[351683257,1738719045064,-507.05792851,0.00010899,2]
[351683258,1738719045074,-425.82889137,0.00011399,2]
[351683259,1738719045084,-19743.27075021,0.00011399,2]
[351683260,1738719045095,-159693.14925098,0.00011399,2]
[351683261,1738719045106,-5549.9,0.00011399,2]
[351683262,1738719046378,-355.88,0.0001,2]
[351683264,1738719046391,-17.65,0.0001,2]
[351683265,1738719046401,-504.34878768,0.00010897,2]
[351683266,1738719046410,-505.00860555,0.00010897,2]
[351683267,1738719046420,-508.45560099,0.00010897,2]
[351683268,1738719046430,-503.98169304,0.00010897,2]
[351683269,1738719046439,-627.41029824,0.00011184,2]
[351683270,1738719046460,-10.94470176,0.00011184,2]
[351683271,1738719046470,-1698.33823574,0.000113,2]
[351683272,1738719046485,-512.867925,0.00011399,2]
[351683273,1738719046495,-17989.4174775,0.00011399,2]
[351683274,1738719046551,-5308.0,0.00011399,2]
[351683275,1738719046638,-1665.0,0.00011178,2]
[351683276,1738719046647,-3046.13608082,0.00011399,2]
[351683277,1738719046724,-502.6016888,0.00010897,2]
[351683278,1738719046734,-707.60002819,0.00011399,2]
[351683279,1738719046746,-670.3097932,0.00011399,2]
[351683280,1738719069117,498.0945427,8.786e-05,2]
[351683281,1738719069377,498.0945427,8.8e-05,2]
[351683282,1738719069683,498.0945427,8.759e-05,2]
[351683283,1738719069956,498.0945427,8.768e-05,2]
[351683284,1738719150828,150.0,0.00017666,120]
[351683296,1738719211318,150.0,0.00017216,120]
[351683297,1738719232594,35184.481,8.836e-05,2]
[351683298,1738719236662,716.27,8.238e-05,2]
[351683299,1738719259938,31024.7111,8.699e-05,2]
[351683300,1738719271807,150.0,0.00018874,120]
[351683301,1738719284452,3880.6364,8.699e-05,2]
[351683302,1738719286667,4008.1393,8.836e-05,2]
[351683303,1738719329939,1004.6704,8.836e-05,2]
[351683306,1738719448237,602.2017,8.699e-05,2]
[351683307,1738719495548,10568.8151,8.836e-05,2]
[351683308,1738719511359,150.0,0.00018759,120]
[351683309,1738719556947,8386.4779,8.836e-05,2]
[351683310,1738719570720,150.0,0.00017908,120]
[351683312,1738719612725,8854.3328,8.836e-05,2]
[351683313,1738719630758,150.0,0.00017138,120]
[351683319,1738719690740,150.0,0.00018551,120]
[351683321,1738719837087,2500.0,8.851e-05,2]
[351683323,1738719953246,954.1874,8.836e-05,2]
[351683324,1738720116140,3317.1018,8.836e-05,2]
[351683325,1738720134988,680.45,8.234e-05,2]
[351683330,1738720232381,-1003.26226981,8.972e-05,2]
[351683331,1738720232391,-768.53828586,8.972e-05,2]
[351683332,1738720232402,-277.224,8.972e-05,2]
[351683333,1738720232586,-13556.29449259,8.972e-05,2]
[351683334,1738720232596,-150.0,8.972e-05,2]
[351683335,1738720232606,-22932.4187336,8.973e-05,2]
[351683336,1738720232617,-53938.35010026,8.973e-05,2]
[351683337,1738720232948,-2813.24472267,8.973e-05,2]
[351683339,1738720232960,-5938.74484347,8.973e-05,2]
[351683341,1738720232969,-4983.3441,8.973e-05,2]
[351683343,1738720232979,-1356.90412283,8.973e-05,2]
[351683345,1738720232988,-1312.22589844,8.973e-05,2]
[351683347,1738720232997,-193.543207,8.973e-05,2]
[351683349,1738720233006,-1059.0,9.033e-05,2]
[351683350,1738720233016,-1312.22589842,9.478e-05,2]
[351683352,1738720233025,-1059.0,9.508e-05,2]
[351683355,1738720233035,-250.0,9.521e-05,2]
[351683357,1738720233044,-1000.0,9.643e-05,2]
[351683359,1738720233054,-500.0,9.809e-05,2]
[351683361,1738720233064,-255.0,9.869e-05,2]
[351683363,1738720233073,-500.0,9.87e-05,2]
[351683365,1738720233083,-1312.22589842,9.984e-05,2]
[351683366,1738720233092,-1059.0,0.00010009,2]
[351683369,1738720233102,-237.0,0.00010137,2]
[351683370,1738720233111,-331.13,0.00010152,2]
[351683372,1738720233120,-1437.23,0.00010152,2]
[351683374,1738720233130,-453.75,0.00010152,2]
[351683376,1738720233140,-371.42,0.0001018,2]
[351683378,1738720233150,-288.1,0.00010215,2]
[351683380,1738720233160,-23900.0,0.00010268,2]
[351683382,1738720233169,-340.13699785,0.00010268,2]
[351683384,1738720233179,-376.67,0.00010271,2]
[351683386,1738720233188,-300.0,0.000103,3]
[351683388,1738720233198,-876.92,0.00010356,2]
[351683390,1738720233207,-150.74,0.00010356,2]
[351683392,1738720233217,-1312.22589842,0.00010389,2]
[351683394,1738720233226,-700.0,0.000104,3]
[351683396,1738720233236,-165.59,0.00010457,2]
[351683398,1738720233246,-153.87,0.00010477,2]
[351683400,1738720233255,-680.45,0.00010498,2]
[351683402,1738720233266,-1000.0,0.000105,3]
[351683404,1738720233275,-1059.0,0.00010509,2]
[351683406,1738720233285,-1400.0,0.000106,3]
[351683408,1738720233294,-1700.0,0.000107,3]
[351683410,1738720233303,-300.0,0.000108,3]
[351683412,1738720233312,-1000.0,0.00010848,2]
[351683414,1738720233321,-1312.22589842,0.00010895,2]
[351683416,1738720233330,-500.0,0.00010896,2]
[351683418,1738720233340,-558.57385644,0.00010896,2]
[351683420,1738720233349,-504.17712987,0.00010896,2]
[351683422,1738720233359,-500.0,0.00010896,2]
[351683424,1738720233368,-500.0,0.00010896,2]
[351683426,1738720233377,-500.0,0.00010896,2]
[351683428,1738720233387,-500.0,0.00010896,2]
[351683430,1738720233396,-500.0,0.00010896,2]
[351683432,1738720233406,-500.0,0.00010896,2]
[351683434,1738720233415,-500.0,0.00010896,2]
[351683436,1738720233424,-502.65352074,0.00010896,2]
[351683438,1738720233434,-370.89360713,0.00010896,2]
[351683440,1738720233444,-513.98950157,0.00010896,2]
[351683442,1738720233453,-503.10610346,0.00010896,2]
[351683444,1738720233463,-502.51802126,0.00010896,2]
[351683446,1738720233472,-507.29706773,0.00010896,2]
[351683448,1738720233481,-620.2890824,0.00010896,2]
[351683450,1738720233491,-509.36759639,0.00010896,2]
[351683452,1738720233500,-391.7319554,0.00010896,2]
[351683453,1738720233510,-506.60737599,0.00010896,2]
[351683454,1738720233521,-510.32041175,0.00010896,2]
[351683455,1738720233530,-156.446561,0.00010896,2]
[351683456,1738720233541,-179.59063769,0.00010896,2]
[351683457,1738720233550,-500.0,0.00010896,2]
[351683459,1738720233560,-500.0,0.00010896,2]
[351683460,1738720233570,-282.219901,0.00010896,2]
[351683461,1738720233580,-500.0,0.00010896,2]
[351683462,1738720233590,-500.0,0.00010896,2]
[351683463,1738720233600,-1151.126086,0.00010896,2]
[351683464,1738720233610,-500.0,0.00010896,2]
[351683465,1738720233620,-500.0,0.00010896,2]
[351683466,1738720233630,-181.783046,0.00010896,2]
[351683467,1738720233640,-795.39,0.00010896,2]
[351683468,1738720233650,-176.55366652,0.00010896,2]
[351683469,1738720233659,-397.64002694,0.00010896,2]
[351683470,1738720233669,-627.85385092,0.00010896,2]
[351683471,1738720233679,-500.0,0.00010896,2]
[351683472,1738720233688,-505.83025972,0.00010896,2]
[351683473,1738720233698,-504.83747025,0.00010896,2]
[351683474,1738720233708,-500.0,0.00010896,2]
[351683475,1738720233717,-500.0,0.00010896,2]
[351683476,1738720233727,-504.08330972,0.00010896,2]
[351683477,1738720233736,-332.35961589,0.00010896,2]
[351683478,1738720233746,-608.58328087,0.00010896,2]
[351683479,1738720233755,-507.96680478,0.00010896,2]
[351683480,1738720233765,-500.0,0.00010896,2]
[351683481,1738720233774,-509.08374286,0.00010896,2]
[351683482,1738720233783,-500.0,0.00010896,2]
[351683483,1738720233793,-509.31598297,0.00010896,2]
[351683484,1738720233802,-505.19371825,0.00010896,2]
[351683485,1738720233811,-521.20993439,0.00010896,2]
[351683486,1738720233821,-500.0,0.00010896,2]
[351683487,1738720233830,-500.0,0.00010896,2]
[351683488,1738720233840,-500.0,0.00010896,2]
[351683489,1738720233851,-500.0,0.00010896,2]
[351683490,1738720233861,-500.0,0.00010896,2]
[351683491,1738720233870,-500.0,0.00010896,2]
[351683492,1738720233880,-484.79489259,0.00010896,2]
[351683493,1738720233891,-500.0,0.00010896,2]
[351683494,1738720233900,-500.0,0.00010896,2]
[351683495,1738720233910,-504.6393837,0.00010896,2]
[351683496,1738720233919,-500.0,0.00010896,2]
[351683497,1738720233929,-500.0,0.00010896,2]
[351683498,1738720233939,-543.4126227,0.00010896,2]
[351683499,1738720233949,-500.0,0.00010896,2]
[351683500,1738720233959,-500.0,0.00010896,2]
[351683501,1738720233969,-500.0,0.00010896,2]
[351683502,1738720233979,-500.0,0.00010896,2]